bitfinex/quotes_ETHUSD_20260121
["timestamp","ask_amount","ask_price","bid_price","bid_amount"]
[1769023795320,0.10332357,2983.6,2980.6,0.23132357]
[1769023795498,0.10332357,2983.4,2980.6,3.35496756]
[1769023795700,11.64603951,2984.2,2982.0,5.253027]
[1769023795929,0.002,2984.6,2982.1,0.10332357]
[1769023796133,0.10332357,2984.3,2981.1,3.35444862]
[1769023796398,0.10332357,2984.2,2981.4,0.10332357]
[1769023796624,0.10332357,2984.4,2981.4,0.10332357]
[1769023796625,0.10332357,2984.1,2981.7,4.891704]
[1769023796842,0.002,2984.6,2982.0,0.10332357]
[1769023797035,0.002,2984.6,2982.0,3.45676588]
[1769023797197,0.2,2985.4,2982.4,0.10332357]
[1769023797400,0.2,2985.4,2984.4,0.10332357]
[1769023797598,0.2,2985.4,2983.5,8.467822]
[1769023797831,0.2,2985.4,2983.6,0.85711456]
[1769023798003,0.2,2985.4,2983.6,0.10332357]
[1769023798203,0.2,2985.4,2984.0,0.10332357]
[1769023798519,0.2,2985.4,2982.6,0.10332357]
[1769023798738,0.2,2985.4,2983.3,0.10332357]
[1769023798938,0.10332357,2985.2,2982.6,3.906262]
[1769023799163,0.10332357,2985.0,2982.7,0.40095856]
[1769023799319,0.10332357,2985.1,2982.3,30.0]
[1769023799523,0.10332357,2985.1,2982.0,0.10332357]
[1769023799816,0.10332357,2985.1,2982.3,30.0]
[1769023800012,1.03522844,2985.2,2982.8,14.004116]
[1769023800214,1.03522844,2985.2,2983.7,8.402236]
[1769023800418,3.54964841,2985.4,2983.4,0.10332357]
[1769023800654,0.10332357,2984.9,2982.1,0.10332357]
[1769023800949,6.89928329,2985.4,2983.2,2.778696]
[1769023801148,6.89928329,2985.4,2983.6,0.10332357]
[1769023801354,3.34770752,2987.2,2984.2,0.10332357]
[1769023801651,0.10332357,2986.3,2983.1,3.45554106]
[1769023801873,0.10332357,2985.1,2982.7,0.10332357]
[1769023802068,0.10332357,2984.6,2982.6,3.268143]
[1769023802251,0.10332357,2984.6,2982.1,0.10332357]
[1769023802252,12.15840917,2985.4,2982.4,0.10332357]
[1769023802455,0.10332357,2985.3,2982.6,0.10332357]
[1769023802634,0.10332357,2985.0,2982.1,0.10332357]
[1769023802821,0.10332357,2983.8,2980.5,0.10332357]
[1769023803027,0.10332357,2982.7,2979.7,0.10332357]
[1769023803350,0.10332357,2982.7,2979.0,2.822954]
[1769023803351,0.10332357,2982.0,2979.0,2.822954]
[1769023803554,12.15840917,2982.7,2979.6,0.10332357]
[1769023803555,0.10332357,2982.6,2979.6,0.10332357]
[1769023803762,0.10332357,2984.1,2979.6,0.10332357]
[1769023803763,0.34510311,2982.5,2982.3,0.10332357]
[1769023803917,12.0550856,2983.7,2982.1,0.09362287]
[1769023804123,12.0550856,2983.7,2981.9,0.10332357]
[1769023804124,12.0550856,2983.6,2980.3,0.10332357]
[1769023804334,12.0550856,2983.2,2981.3,0.10332357]
[1769023804654,12.0550856,2983.2,2980.8,0.10332357]
[1769023804880,10.05665247,2983.1,2980.8,0.10332357]
[1769023805020,10.05665247,2983.1,2981.2,0.10332357]
[1769023805225,0.10332357,2982.7,2979.9,3.45910522]
[1769023805560,0.10332357,2981.8,2979.0,0.10332357]
[1769023805857,12.0550856,2982.2,2979.6,0.10332357]
[1769023806232,12.0550856,2982.2,2979.4,0.10332357]
[1769023806233,0.10332357,2981.7,2979.4,0.10332357]
[1769023806473,0.10332357,2981.6,2978.8,0.10332357]
[1769023806770,0.10332357,2982.1,2979.5,3.45950755]
[1769023806970,6.20735796,2981.8,2979.3,0.10332357]
[1769023807174,3.35255464,2982.8,2979.7,0.10332357]
[1769023807386,6.70510928,2982.8,2979.8,11.440566]
[1769023807558,0.10332357,2982.5,2979.8,3.257432]
[1769023807735,0.10332357,2982.1,2979.6,14.961367]
[1769023807936,0.10332357,2982.0,2979.8,5.199001]
[1769023808141,0.10332357,2981.3,2979.4,1.64528081]
[1769023808340,0.10332357,2982.0,2979.1,3.35670333]
[1769023808341,0.10332357,2981.7,2979.1,3.35670333]
[1769023808579,0.10332357,2981.7,2979.8,0.001]
[1769023808779,0.10332357,2981.4,2979.8,0.001]
[1769023808950,3.35424143,2981.3,2979.8,0.001]
[1769023809155,3.35401643,2981.5,2979.8,0.001]
[1769023809459,0.10332357,2981.4,2979.8,0.001]
[1769023809779,0.10332357,2981.0,2979.8,0.001]
[1769023810068,0.10332357,2981.4,2979.8,0.001]
[1769023810271,0.33540164,2981.5,2979.8,0.001]
[1769023810452,0.10332357,2981.0,2979.8,0.001]
[1769023810771,0.10332357,2981.2,2979.8,0.001]
[1769023810940,3.35424143,2981.3,2979.8,0.001]
[1769023811149,0.10332357,2981.1,2979.8,0.001]
[1769023811343,0.10332357,2980.6,2978.3,3.35762011]
[1769023811675,0.10332357,2981.1,2978.4,0.25330368]
[1769023811676,0.10332357,2980.7,2978.4,0.25330368]
[1769023811878,0.10332357,2979.9,2977.2,0.00080008]
[1769023812077,0.10332357,2980.1,2977.7,0.25348174]
[1769023812265,0.10332357,2980.1,2977.2,0.00080008]
[1769023812266,5.32828814,2981.1,2978.3,4.565]
[1769023812573,0.10332357,2980.3,2977.8,0.10332357]
[1769023812774,0.10332357,2980.5,2977.9,0.25361389]
[1769023812982,0.10332357,2980.0,2977.7,7.008661]
[1769023813147,0.10332357,2979.3,2977.8,0.25365753]
[1769023813348,0.68145078,2979.9,2976.5,0.10332357]
[1769023813349,12.0550856,2978.3,2976.5,0.10332357]
[1769023813580,0.36987576,2978.2,2976.5,0.10332357]
[1769023813786,12.6090856,2979.2,2976.7,0.10332357]
[1769023813960,12.6090856,2979.2,2976.6,0.10332357]
[1769023814151,12.6090856,2979.2,2977.0,0.10332357]
[1769023814485,12.6090856,2979.2,2977.2,0.10332357]
[1769023814679,12.6090856,2979.2,2977.5,0.10332357]
[1769023814983,12.6090856,2979.2,2977.0,0.10332357]
[1769023814984,13.42687388,2979.1,2977.6,0.10332357]
[1769023815149,10.07015541,2979.1,2977.4,0.10332357]
[1769023815484,10.07015541,2979.1,2977.0,0.10332357]
[1769023815485,6.71343694,2979.1,2977.9,0.10332357]
[1769023815809,10.06778976,2979.8,2978.3,0.10332357]
[1769023816086,11.718355,2980.2,2978.2,0.10332357]
[1769023816292,21.78515353,2980.1,2977.6,0.10332357]
[1769023816494,5.22496457,2979.0,2976.7,0.10332357]
[1769023816655,11.718355,2979.5,2977.0,0.10332357]
[1769023816851,5.22496457,2979.0,2976.8,0.10332357]
[1769023817155,5.22496457,2979.0,2976.4,3.46307312]
[1769023817441,18.43134126,2979.3,2977.2,0.10332357]
[1769023817604,25.14432752,2979.3,2977.0,0.10332357]
[1769023817887,21.78783439,2979.3,2977.0,0.10332357]
[1769023818382,21.78783439,2979.3,2976.7,0.10332357]
[1769023818584,11.82167857,2979.2,2976.5,0.10332357]
[1769023818802,11.82167857,2979.2,2975.6,0.10332357]
[1769023818803,17.04664314,2979.0,2976.3,0.10332357]
[1769023818967,10.62583149,2978.9,2976.5,0.10332357]
[1769023819177,6.71388766,2978.9,2976.4,3.35976347]
[1769023819491,11.82167857,2978.5,2975.9,0.001]
[1769023819711,0.10332357,2978.1,2975.9,0.001]
[1769023819855,11.718355,2978.5,2977.0,0.10332357]
[1769023820059,18.43111594,2979.4,2977.5,0.10332357]
[1769023820355,0.555,2979.3,2977.9,0.10332357]
[1769023820553,18.43111594,2979.4,2977.9,0.10332357]
[1769023820786,0.47394914,2979.7,2978.3,0.10332357]
[1769023820989,11.718355,2980.3,2978.5,0.10332357]
[1769023821285,11.718355,2980.1,2978.4,0.10332357]
[1769023821486,11.718355,2980.1,2978.2,0.10332357]
[1769023821693,0.47603702,2980.0,2978.4,0.10332357]
[1769023821892,0.47603702,2980.0,2978.0,0.10332357]
[1769023821893,0.555,2980.0,2978.0,0.10332357]
[1769023822416,0.555,2979.9,2977.4,0.10332357]
[1769023822558,11.718355,2980.5,2977.9,0.10332357]
[1769023822891,6.71231036,2979.6,2976.6,0.001]
[1769023823057,0.10332357,2979.0,2976.7,3.994237]
[1769023823256,15.07439755,2979.7,2977.2,6.82103588]
[1769023823487,0.10332357,2979.0,2976.6,0.001]
[1769023823667,0.10332357,2979.0,2976.8,5.630968]
[1769023823857,0.10332357,2979.0,2977.0,5.605342]
[1769023824094,11.718355,2979.6,2977.0,5.605342]
[1769023824396,0.65832357,2980.0,2977.4,10.682692]
[1769023824686,0.555,2979.9,2977.4,5.224018]
[1769023824890,0.10332357,2979.6,2977.5,6.7170445]
[1769023825091,0.10332357,2978.8,2977.0,3.35901566]
[1769023825386,0.10332357,2979.0,2976.9,0.5630968]
[1769023825690,0.10332357,2978.4,2976.6,0.001]
[1769023825897,0.10332357,2977.6,2976.6,0.001]
[1769023826095,0.10332357,2977.4,2974.5,0.10332357]
[1769023826259,0.10332357,2977.2,2975.2,3.36111603]
[1769023826460,0.10332357,2977.4,2975.4,3.3608741]
[1769023826779,0.10332357,2977.3,2974.5,1.78102949]
[1769023826982,3.35874785,2977.3,2974.6,10.08538962]
[1769023827194,3.35874785,2977.3,2973.3,3.56]
[1769023827195,0.10332357,2976.8,2973.0,12.0510382]
[1769023827361,0.44953071,2977.2,2974.6,10.037618]
[1769023827691,0.10332357,2977.1,2974.7,5.15939]
[1769023827854,0.10332357,2976.5,2974.6,10.176105]
[1769023828187,0.10332357,2976.5,2974.5,3.36190882]
[1769023828188,0.10332357,2976.7,2974.5,3.36190882]
[1769023828392,0.34620714,2977.2,2974.7,9.99465]
[1769023828561,0.555,2977.1,2974.7,3.212301]
[1769023828754,0.10332357,2977.1,2974.7,3.212301]
[1769023828957,0.10332357,2976.9,2974.8,6.72314104]
[1769023829154,0.10332357,2976.9,2974.8,3.36157052]
[1769023829359,0.10332357,2976.6,2974.8,0.36977614]
[1769023829593,0.10332357,2976.8,2974.0,3.36241211]
[1769023829758,10.0766781,2977.2,2974.7,6.72332066]
[1769023829759,6.7177854,2977.2,2974.7,6.72332066]
[1769023829955,1.12132374,2977.1,2974.8,0.67233207]
[1769023830588,0.10332357,2976.5,2974.8,0.67233207]
[1769023830788,0.10332357,2976.7,2973.8,17.778446]
[1769023830966,12.73635517,2977.1,2974.3,1.71881177]
[1769023831167,12.73635517,2977.1,2974.1,10.19040873]
[1769023831168,0.10332357,2976.3,2974.4,0.25052392]
[1769023831380,0.128,2977.6,2974.6,0.10332357]
[1769023831579,12.29771559,2977.7,2974.0,6.72494956]
[1769023831580,0.10332357,2976.4,2974.0,3.36247478]
[1769023831789,0.10332357,2976.4,2974.0,6.72494956]
[1769023831790,0.10332357,2976.2,2974.0,6.72494956]
[1769023831992,0.10332357,2976.8,2974.1,0.35433502]
[1769023832196,0.10332357,2975.8,2973.0,0.128]
[1769023832368,0.10332357,2976.0,2973.2,3.36331413]
[1769023832580,0.10332357,2975.4,2972.6,6.623007]
[1769023832783,0.10332357,2975.6,2973.5,3.36300131]
[1769023832988,0.10332357,2975.6,2973.2,5.853886]
[1769023833191,11.718355,2976.1,2973.3,0.25153452]
[1769023833400,11.718355,2976.1,2973.2,4.79147857]
[1769023833401,0.10332357,2975.8,2973.5,2.246316]
[1769023833591,0.10332357,2976.0,2973.7,2.246316]
[1769023833793,0.10332357,2975.7,2973.7,2.246316]
[1769023833997,0.10332357,2976.0,2973.7,2.246316]
[1769023834200,0.10332357,2976.0,2973.9,5.513356]
[1769023834373,0.10332357,2975.6,2974.0,0.57646624]
[1769023834573,0.10332357,2975.8,2973.4,1.65890624]
[1769023834776,0.10332357,2976.3,2973.6,7.37629]
[1769023835002,0.10332357,2976.1,2973.9,5.830355]
[1769023835203,0.10332357,2976.3,2973.9,5.830355]
[1769023835408,3.4627637,2976.7,2974.1,10.302833]
[1769023835702,0.68220807,2976.6,2974.3,5.770681]
[1769023836004,3.35897349,2977.1,2974.4,0.25137641]
[1769023836232,0.10332357,2976.5,2974.5,0.25136647]
[1769023836512,0.44955328,2977.0,2974.6,10.886346]
[1769023836674,0.44955328,2977.0,2974.0,1.65397472]
[1769023836875,0.10332357,2976.8,2974.3,16.410714]
[1769023837105,0.10332357,2976.7,2974.5,5.627746]
[1769023837311,0.10332357,2976.5,2974.6,1.26034257]
[1769023837672,0.10332357,2976.7,2974.6,1.26034257]
[1769023837894,0.34622971,2977.0,2974.8,4.911708]
[1769023838096,0.10332357,2977.5,2975.0,5.016044]
[1769023838302,0.10332357,2977.3,2975.1,0.25186508]
[1769023838486,11.82167857,2978.9,2975.2,0.25166762]
[1769023838693,0.10332357,2978.2,2975.4,9.11448581]
[1769023838895,0.10332357,2978.2,2975.7,6.72677147]
[1769023839107,0.10332357,2978.7,2975.9,19.74012]
[1769023839276,0.10332357,2978.7,2976.1,4.584817]
[1769023839477,0.10332357,2978.4,2976.3,2.634708]
[1769023839709,0.10332357,2977.7,2975.8,3.36044088]
[1769023839912,0.10332357,2977.9,2975.9,0.2520167]
[1769023840114,0.10332357,2978.2,2976.1,4.150715]
[1769023840319,21.89258582,2978.9,2976.3,6.025145]
[1769023840320,18.53560411,2978.9,2976.3,6.025145]
[1769023840617,0.10332357,2980.9,2978.0,5.21605161]
[1769023840799,0.10332357,2980.3,2978.3,3.409738]
[1769023840991,0.10332357,2980.1,2978.3,3.35762011]
[1769023841314,0.10332357,2979.9,2978.3,3.35762011]
[1769023841623,0.10332357,2980.1,2978.3,0.33576201]
[1769023841809,0.10332357,2979.8,2978.3,0.33576201]
[1769023842119,3.45874679,2980.3,2977.5,3.35844473]
[1769023842120,0.002,2981.3,2978.7,0.10332357]
[1769023842286,0.002,2981.3,2979.4,3.74568]
[1769023842503,0.002,2981.3,2978.5,0.10332357]
[1769023842504,0.10332357,2981.0,2978.5,0.10332357]
[1769023842695,0.002,2981.3,2978.7,4.85332357]
[1769023842896,0.002,2981.3,2979.2,8.950767]
[1769023843095,0.002,2981.3,2979.5,2.4503]
[1769023843296,0.002,2981.3,2978.7,4.23124157]
[1769023843605,0.002,2981.3,2979.8,0.10332357]
[1769023843805,0.003,2982.6,2980.6,5.21605161]
[1769023843997,0.10332357,2984.2,2980.9,0.10332357]
[1769023844196,0.10332357,2983.6,2981.1,2.0]
[1769023844399,0.10332357,2982.9,2980.8,10.74244]
[1769023844707,0.10332357,2983.8,2980.8,10.74244]
[1769023844708,0.10332357,2984.2,2981.1,0.10332357]
[1769023845025,3.35062604,2984.6,2981.2,1.72568502]
[1769023845026,0.10332357,2984.5,2981.2,1.72568502]
[1769023845198,0.10332357,2984.5,2981.7,0.10332357]
[1769023845403,0.10332357,2983.9,2981.4,4.493268]
[1769023845736,0.10332357,2984.1,2981.4,4.493268]
[1769023845948,11.89056541,2985.5,2982.4,16.165552]
[1769023846239,5.21605161,2986.0,2982.4,1.67735805]
[1769023846240,0.10332357,2985.2,2982.4,1.67735805]
[1769023846538,0.10332357,2984.2,2982.5,0.69967332]
[1769023846750,0.10332357,2983.9,2981.5,11.541355]
[1769023846899,0.10332357,2984.1,2981.4,27.691816]
[1769023847221,0.10332357,2982.9,2981.1,3.35439315]
[1769023847568,0.302276,2982.7,2981.3,3.35422688]
[1769023847867,0.302276,2983.7,2981.5,5.643621]
[1769023848030,0.302276,2983.5,2981.5,5.643621]
[1769023848232,0.302276,2983.5,2981.5,4.882032]
[1769023848459,0.302276,2982.8,2981.4,3.35412525]
[1769023848631,0.10332357,2983.8,2981.5,3.73562]
[1769023848828,0.10332357,2984.5,2981.5,6.20855]
[1769023849126,0.128,2985.0,2981.5,6.20855]
[1769023849127,0.10332357,2985.5,2982.1,0.10332357]
[1769023849324,5.31937518,2986.4,2982.1,0.10332357]
[1769023849325,0.10332357,2986.4,2982.8,0.10332357]
[1769023849535,3.3478178,2987.1,2982.8,0.10332357]
[1769023849536,3.34739238,2987.4,2984.0,0.10332357]
[1769023849740,0.10332357,2987.2,2984.3,5.694269]
[1769023849962,0.18790091,2987.8,2984.5,0.10332357]
[1769023850271,0.36380674,2987.7,2984.4,3.899475]
[1769023850476,0.36380674,2987.7,2985.1,0.2335703]
[1769023850643,0.18790091,2987.8,2985.0,5.21605161]
[1769023850831,0.18790091,2987.8,2985.1,3.408836]
[1769023851031,0.18790091,2987.8,2985.3,1.65560632]
[1769023851231,0.18790091,2987.8,2986.2,0.10332357]
[1769023851427,0.00720856,2989.0,2986.7,21.808383]
[1769023851631,0.00720856,2989.0,2987.1,0.10332357]
[1769023851857,0.00720856,2989.0,2986.9,8.131895]
[1769023852077,0.10332357,2990.2,2987.3,1.70693885]
[1769023852368,0.10332357,2989.4,2988.4,0.0002036]
[1769023852580,0.10332357,2990.4,2988.4,0.0002036]
[1769023852790,0.10332357,2989.3,2986.4,0.67679855]
[1769023852928,0.10332357,2990.3,2986.4,0.67679855]
[1769023852929,0.10332357,2990.3,2987.1,0.10332357]
[1769023853132,0.10332357,2989.8,2987.3,3.454662]
[1769023853346,0.10332357,2990.0,2987.3,3.454662]
[1769023853549,0.10332357,2989.6,2987.3,3.454662]
[1769023853753,0.10332357,2989.0,2986.2,3.575049]
[1769023853960,0.10332357,2989.1,2987.1,3.34763442]
[1769023854175,0.10332357,2988.9,2986.8,3.34795835]
[1769023854397,5.31937518,2989.3,2986.3,0.36783726]
[1769023854668,0.10332357,2987.6,2985.4,4.063036]
[1769023854869,0.10332357,2988.5,2985.5,0.10332357]
[1769023855053,0.10332357,2988.0,2985.3,3.34971078]
[1769023855254,0.10332357,2988.1,2985.7,3.519585]
[1769023855479,3.34579363,2988.9,2985.7,3.519585]
[1769023855480,0.10332357,2989.1,2986.2,0.10332357]
[1769023855633,0.10332357,2990.1,2986.2,0.10332357]
[1769023855634,3.34392242,2990.5,2987.8,0.10332357]
[1769023855833,15.23510552,2990.7,2988.1,0.10332357]
[1769023856153,11.89136669,2990.7,2988.3,0.10332357]
[1769023856336,11.89136669,2990.7,2988.5,0.10332357]
[1769023856664,0.10332357,2990.6,2987.9,6.111218]
[1769023856864,18.57878079,2990.7,2987.5,1.66478943]
[1769023856865,0.00080128,2990.7,2989.0,0.10332357]
[1769023857032,0.00080048,2991.9,2990.2,0.10332357]
[1769023857234,0.00080048,2991.9,2990.7,0.00080128]
[1769023858242,0.10412405,2991.9,2990.4,0.00080136]
[1769023858442,0.10332357,2991.2,2989.1,3.34546628]
[1769023858652,0.10332357,2991.0,2988.3,0.10332357]
[1769023858872,0.00271949,2991.6,2988.7,0.10332357]
[1769023859056,0.00271949,2991.6,2989.7,4.98773257]
[1769023859243,0.00271949,2991.6,2990.1,0.10332357]
[1769023859441,0.00080048,2991.9,2991.0,0.00080096]
[1769023859641,0.00080048,2991.9,2991.3,0.00080048]
[1769023860095,0.00080016,2992.2,2991.3,0.00080048]
[1769023860236,0.00080008,2992.9,2992.3,0.00080024]
[1769023860431,0.10332357,2992.7,2991.6,0.00080056]
[1769023860635,0.00080008,2992.9,2991.6,0.00080056]
[1769023860836,0.00080008,2992.9,2991.7,3.49678]
[1769023861067,0.10332357,2992.2,2991.3,0.00080048]
[1769023861251,0.10332357,2992.2,2988.9,3.34561108]
[1769023861252,0.10332357,2991.5,2988.9,3.34561108]
[1769023861436,5.21605161,2991.8,2989.1,3.34544029]
[1769023861634,16.94200805,2992.5,2989.3,7.061531]
[1769023861635,0.53440516,2991.7,2989.3,7.061531]
[1769023861834,6.6833751,2992.5,2989.4,0.10332357]
[1769023861835,0.10332357,2992.4,2989.4,0.10332357]
[1769023862141,0.10332357,2992.7,2989.9,0.10332357]
[1769023862344,0.10332357,2991.9,2989.3,10.026277]
[1769023862568,0.10332357,2992.4,2989.3,10.026277]
[1769023862569,0.002,2991.1,2989.3,7.312201]
[1769023862770,0.00080008,2992.9,2990.4,15.206137]
[1769023862983,0.00080008,2993.2,2991.9,0.10332357]
[1769023863282,0.00080016,2993.4,2992.9,0.00080016]
[1769023863447,0.00080016,2993.4,2992.6,0.00080016]
[1769023863641,0.00080016,2993.4,2990.8,25.917833]
[1769023863843,0.10332357,2992.4,2989.8,16.866341]
[1769023864145,5.21605161,2992.7,2989.7,0.68340715]
[1769023864344,0.10332357,2992.6,2989.8,12.154665]
[1769023864579,0.10332357,2992.2,2989.8,8.533086]
[1769023864744,0.10332357,2992.0,2989.1,3.754051]
[1769023864953,0.10332357,2991.9,2989.5,3.34498255]
[1769023865170,0.10332357,2992.2,2989.5,12.722388]
[1769023865481,0.10332357,2991.4,2989.4,9.824623]
[1769023865700,0.10332357,2991.0,2988.8,5.925692]
[1769023865992,0.10332357,2990.6,2987.2,0.10332357]
[1769023866280,0.10332357,2990.4,2987.7,3.34705521]
[1769023866481,0.10332357,2991.1,2987.7,3.34705521]
[1769023866482,13.07048071,2991.7,2988.6,0.10332357]
[1769023866793,0.10332357,2990.7,2988.4,3.34619869]
[1769023867101,0.10332357,2989.7,2987.8,1.34287602]
[1769023867247,0.10332357,2989.6,2987.3,3.34749327]
[1769023867556,0.10332357,2988.7,2986.6,0.001]
[1769023867758,0.10332357,2987.8,2986.6,0.001]
[1769023867978,0.10332357,2987.8,2984.0,5.21605161]
[1769023867979,0.10332357,2986.7,2983.6,12.43853676]
[1769023868184,0.10332357,2987.4,2983.6,12.43853676]
[1769023868185,0.10332357,2987.1,2983.8,30.0]
[1769023868380,0.10332357,2987.0,2984.3,3.35078235]
[1769023868692,0.10332357,2987.7,2984.4,0.10332357]
[1769023868900,0.10332357,2988.4,2985.1,0.10332357]
[1769023869205,0.10332357,2989.4,2984.8,0.10332357]
[1769023869206,3.34582441,2988.8,2985.8,10.85912857]
[1769023869350,3.34582441,2988.8,2985.7,3.34929832]
[1769023869351,0.10332357,2988.4,2986.1,18.032473]
[1769023869551,0.10332357,2988.8,2986.0,8.374837]
[1769023869792,0.10332357,2988.4,2986.0,4.969858]
[1769023870079,0.10332357,2987.8,2985.7,24.04879]
[1769023870283,0.10332357,2988.4,2985.9,2.409642]
[1769023870482,0.10332357,2988.2,2985.7,8.748058]
[1769023870655,0.10332357,2988.6,2985.7,8.748058]
[1769023871051,16.3128696,2988.9,2985.9,10.04722194]
[1769023871255,0.10332357,2988.4,2985.9,6.69814796]
[1769023871576,3.44925993,2988.7,2985.9,6.69814796]
[1769023871577,0.10332357,2988.7,2986.1,20.95082]
[1769023871774,13.07048071,2990.0,2986.5,1.73247398]
[1769023871989,16.311651,2990.0,2987.2,0.10332357]
[1769023872187,0.10332357,2990.3,2987.3,30.0]
[1769023872496,0.10332357,2989.8,2987.5,4.08933]
[1769023872787,0.10332357,2989.0,2986.1,11.528335]
[1769023872950,0.10332357,2989.3,2986.2,0.10332357]
[1769023873151,6.6889632,2990.0,2986.9,4.619554]
[1769023873361,0.10332357,2989.8,2987.0,0.10332357]
[1769023873680,6.79228677,2990.0,2987.1,30.0]
[1769023873885,3.44780517,2990.0,2987.4,30.0]
[1769023874052,13.07048071,2991.2,2987.8,0.10332357]
[1769023874255,0.10332357,2989.7,2987.9,0.17873883]
[1769023874461,0.10332357,2990.2,2987.1,0.10332357]
[1769023874462,12.96715714,2990.2,2987.1,0.10332357]
[1769023874672,12.96715714,2990.2,2987.6,18.496536]
[1769023874985,0.003,2989.4,2987.9,30.0]
[1769023875156,0.003,2989.4,2988.0,30.0]
[1769023875354,0.003,2989.4,2988.0,21.76733]
[1769023875587,0.003,2989.4,2987.8,3.34693408]
[1769023875786,0.10332357,2990.2,2987.9,4.841043]
[1769023875987,0.10332357,2990.0,2987.9,4.841043]
[1769023876188,0.10332357,2990.4,2987.9,2.7891]
[1769023876366,0.002,2990.9,2988.2,0.10332357]
[1769023876683,6.68896464,2990.9,2988.8,4.7608]
[1769023876883,3.34548232,2990.9,2988.6,10.919505]
[1769023877186,3.34548232,2990.9,2988.8,6.509471]
[1769023877187,6.68896464,2990.9,2988.8,6.509471]
[1769023877388,0.10332357,2990.6,2988.5,4.4]
[1769023877715,0.002,2990.9,2989.0,0.10332357]
[1769023877886,0.002,2990.9,2988.7,30.10332357]
[1769023878053,0.002,2990.9,2988.7,23.72221257]
[1769023878258,0.002,2990.9,2989.0,3.989394]
[1769023878453,0.002,2990.9,2988.6,10.47813106]
[1769023878454,0.002,2990.9,2988.6,3.78603444]
[1769023878670,0.002,2990.9,2988.7,4.26]
[1769023878853,0.002,2990.9,2988.9,0.10332357]
[1769023879060,0.002,2990.9,2989.0,2.0]
[1769023879283,0.002,2990.9,2988.7,5.603712]
[1769023879489,0.10332357,2990.5,2987.9,3.34679416]
[1769023879656,0.10332357,2990.5,2986.8,4.00428159]
[1769023879657,0.10332357,2990.7,2987.8,0.46116084]
[1769023879856,0.10332357,2990.4,2987.9,30.0]
[1769023880087,0.002,2990.9,2989.0,3.34559245]
[1769023880261,0.002,2990.9,2988.5,0.10332357]
[1769023880469,0.002,2990.9,2988.7,3.34582606]
[1769023880672,0.002,2990.9,2989.1,6.11989]
[1769023880858,0.002,2990.9,2989.3,13.18421]
[1769023881063,0.002,2990.9,2989.3,2.9963]
[1769023881259,0.002,2990.9,2989.5,10.98004757]
[1769023881461,0.002,2990.9,2989.8,8.410272]
[1769023881663,0.002,2990.9,2989.3,3.34525908]
[1769023881862,0.002,2990.9,2989.5,5.286114]
[1769023882391,0.002,2990.9,2989.5,16.10102]
[1769023882578,0.002,2990.9,2989.5,4.668594]
[1769023882780,3.34226479,2992.0,2989.5,3.456358]
[1769023882781,0.10332357,2992.0,2989.5,3.456358]
[1769023882982,0.34455039,2991.9,2989.7,9.646957]
[1769023883294,0.34455039,2991.9,2989.6,3.91880891]
[1769023883498,3.34235769,2991.9,2989.7,11.071161]
[1769023883667,11.5899255,2992.2,2989.7,11.071161]
[1769023883991,0.10332357,2992.0,2989.7,11.071161]
[1769023884296,0.10332357,2991.9,2989.6,3.91879913]
[1769023884597,0.10332357,2991.5,2989.7,0.39187991]
[1769023884763,0.10332357,2991.5,2989.6,3.34491056]
[1769023884960,3.34187169,2992.4,2989.7,2.325]
[1769023885182,3.34135257,2992.8,2989.8,13.37882132]
[1769023885383,0.10332357,2992.2,2989.9,15.488055]
[1769023885587,0.00080016,2993.4,2990.4,30.0]
[1769023885802,3.34097718,2993.2,2990.6,30.0]
[1769023886008,0.00080016,2993.4,2990.6,30.0]
[1769023886009,0.10412373,2993.4,2990.6,30.0]
[1769023886210,3.34088719,2993.3,2990.6,30.0]
[1769023886502,0.00080016,2993.4,2990.9,30.0]
[1769023886713,0.10332357,2992.9,2990.8,5.11193]
[1769023886864,0.10332357,2992.8,2990.2,2.693163]
[1769023887062,0.10332357,2992.2,2990.3,0.2693163]
[1769023887263,0.10332357,2991.7,2989.4,1.5]
[1769023887488,0.10332357,2991.5,2989.4,1.5]
[1769023887766,3.44523447,2992.3,2990.1,2.571]
[1769023887961,0.10332357,2993.0,2990.1,2.571]
[1769023888207,6.6818121,2993.2,2990.2,0.10332357]
[1769023888366,3.34090605,2993.2,2990.7,30.0]
[1769023888565,0.10332357,2992.6,2990.3,0.43130671]
[1769023888904,0.10332357,2993.1,2990.5,30.0]
[1769023889101,0.10332357,2992.7,2990.3,4.50196]
[1769023889401,6.68315176,2992.6,2990.5,4.547532]
[1769023889562,6.68315176,2992.6,2990.0,3.4487078]
[1769023889563,0.10332357,2992.5,2990.3,3.3441156]
[1769023889766,0.10332357,2991.9,2990.1,3.34432727]
[1769023889999,0.10332357,2992.1,2990.0,0.001]
[1769023890385,0.67864753,2992.4,2990.3,3.34413101]
[1769023890569,3.34157588,2992.6,2990.4,0.3344131]
[1769023890907,0.10332357,2992.3,2990.4,0.3344131]
[1769023891109,0.10332357,2992.5,2990.4,0.3344131]
[1769023891315,1.01279761,2992.5,2990.6,8.149147]
[1769023891593,0.00080016,2993.4,2990.8,0.10332357]
[1769023891800,0.00080016,2993.4,2991.5,30.0]
[1769023892102,3.34148299,2993.4,2991.5,18.057114]
[1769023892317,7.02672186,2993.4,2991.6,1.8057114]
[1769023892528,7.02672186,2993.4,2990.5,0.70226902]
[1769023892529,0.10332357,2992.8,2990.5,0.70226902]
[1769023892667,0.10332357,2992.8,2990.6,7.799673]
[1769023892874,0.10332357,2993.0,2990.5,0.70226902]
[1769023893182,19.00932379,2993.4,2990.8,6.687174]
[1769023893413,22.350082,2993.4,2990.9,2.0]
[1769023893610,19.00932379,2993.4,2990.9,2.0]
[1769023893798,7.02672186,2993.4,2991.0,24.345054]
[1769023893996,7.02672186,2993.4,2991.0,10.721032]
[1769023894199,7.02672186,2993.4,2991.1,0.10332357]
[1769023894200,3.34149006,2993.4,2991.1,0.10332357]
[1769023894373,6.68217996,2993.4,2991.1,0.10332357]
[1769023894712,12.0859255,2993.3,2990.8,2.970736]
[1769023894875,6.68217996,2993.4,2991.3,0.10332357]
[1769023895081,6.68217996,2993.4,2991.3,0.69215023]
[1769023895276,0.00080016,2993.4,2990.9,3.34344426]
[1769023895476,0.00080016,2993.4,2991.3,6.68599361]
[1769023895708,0.00080016,2993.4,2990.9,10.638106]
[1769023895875,0.00080016,2993.4,2990.9,9.72142232]
[1769023896075,0.10332357,2992.9,2991.0,0.98247459]
[1769023896303,0.10332357,2992.9,2990.0,0.001]
[1769023896304,12.0859255,2992.7,2990.1,2.0]